fUSD/lending_fUSD_20240426
["ID","MTS","AMOUNT","RATE_DAILY","PERIOD"]
[323661272,1714150266363,-804.39,0.00012634,2]
[323661273,1714150266373,-500.0,0.00012634,2]
[323661274,1714150266384,-500.0,0.00012634,2]
[323661275,1714150266394,-1395.44,0.00012634,2]
[323661276,1714150266403,-500.0,0.00012634,2]
[323661277,1714150266413,-660.74,0.00012634,2]
[323661278,1714150266423,-500.0,0.00012634,2]
[323661279,1714150266432,-500.0,0.00012634,2]
[323661280,1714150266442,-680.16,0.00012634,2]
[323661281,1714150266452,-500.0,0.00012634,2]
[323661282,1714150266461,-1015.12,0.00012634,2]
[323661283,1714150266472,-1599.73,0.00012634,2]
[323661284,1714150266482,-1437.77,0.00012634,2]
[323661285,1714150266492,-500.0,0.00012634,2]
[323661286,1714150266501,-623.29,0.00012634,2]
[323661287,1714150266512,-500.0,0.00012634,2]
[323661288,1714150266522,-500.0,0.00012634,2]
[323661289,1714150266531,-957.33,0.00012634,2]
[323661290,1714150266541,-579.4,0.00012634,2]
[323661291,1714150266551,-500.0,0.00012636,2]
[323661292,1714150266560,-500.0,0.00012636,2]
[323661293,1714150266569,-569.5,0.00012636,2]
[323661294,1714150266579,-500.0,0.00012636,2]
[323661295,1714150266588,-500.0,0.00012636,2]
[323661296,1714150266597,-500.0,0.00012636,2]
[323661297,1714150266607,-788.98,0.00012674,2]
[323661298,1714150266617,-1394.19,0.00012674,2]
[323661299,1714150266626,-2196.6,0.00012674,2]
[323661300,1714150266636,-1678.12,0.00012674,2]
[323661301,1714150266647,-1854.87,0.00012674,2]
[323661302,1714150266657,-2400.68,0.00012674,2]
[323661303,1714150266670,-2239.95,0.00012674,2]
[323661304,1714150266680,-2716.34,0.00012674,2]
[323661305,1714150266689,-1086.37,0.00012674,2]
[323661306,1714150266699,-1182.47,0.00012674,2]
[323661307,1714150266709,-5458.88,0.00012674,2]
[323661308,1714150266720,-500.0,0.00012674,2]
[323661309,1714150266730,-500.0,0.00012674,2]
[323661310,1714150266742,-500.0,0.00012674,2]
[323661311,1714150266753,-500.0,0.00012674,2]
[323661312,1714150266763,-500.0,0.00012674,2]
[323661313,1714150266773,-500.0,0.00012674,2]
[323661314,1714150266784,-2824.31,0.00012674,2]
[323661315,1714150266794,-600.0,0.000127,4]
[323661316,1714150266807,-158.43571472,0.00012717,2]
[323661317,1714150266818,-208.0,0.00012733,2]
[323661318,1714150266830,-600.0,0.000128,4]
[323661319,1714150266839,-1093.32,0.00012807,2]
[323661320,1714150266849,-1382.18,0.00012807,2]
[323661321,1714150266871,-1992.07,0.00012807,2]
[323661322,1714150266895,-1628.3,0.00012807,2]
[323661323,1714150266910,-966.46,0.00012807,2]
[323661324,1714150266924,-5050.21,0.00012807,2]
[323661325,1714150266937,-3072.98,0.00012807,2]
[323661326,1714150266950,-1042.2,0.00012807,2]
[323661327,1714150266989,-899.64,0.00012807,2]
[323661328,1714150267027,-500.0,0.00012807,2]
[323661329,1714150267061,-2800.92,0.00012807,2]
[323661330,1714150267071,-500.0,0.00012807,2]
[323661331,1714150267087,-2289.85,0.00012807,2]
[323661332,1714150267117,-500.0,0.00012809,2]
[323661333,1714150267140,-500.0,0.00012809,2]
[323661334,1714150267155,-500.0,0.00012809,2]
[323661335,1714150267168,-9768.37,0.00012809,2]
[323661336,1714150267178,-1031.93,0.00012809,2]
[323661337,1714150267188,-500.0,0.00012809,2]
[323661338,1714150267219,-1732.01,0.00012809,2]
[323661339,1714150267254,-1082.85,0.00012809,2]
[323661340,1714150267278,-1291.72,0.00012809,2]
[323661341,1714150267289,-1289.49,0.00012809,2]
[323661342,1714150267299,-500.0,0.00012809,2]
[323661343,1714150267310,-500.0,0.00012809,2]
[323661344,1714150267320,-2275.32,0.00012809,2]
[323661345,1714150267331,-3194.75,0.00012809,2]
[323661346,1714150267341,-2183.79,0.00012809,2]
[323661347,1714150267352,-500.0,0.00012809,2]
[323661348,1714150267362,-500.0,0.00012809,2]
[323661349,1714150267373,-500.0,0.00012809,2]
[323661350,1714150267384,-1504.88,0.00012809,2]
[323661351,1714150267395,-4182.19,0.00012809,2]
[323661352,1714150267405,-1152.39,0.00012809,2]
[323661353,1714150267415,-936.77,0.00012809,2]
[323661354,1714150267426,-824.23,0.00012809,2]
[323661355,1714150267437,-649.9,0.00012809,2]
[323661356,1714150267447,-527.15,0.00012809,2]
[323661357,1714150267457,-500.0,0.00012809,2]
[323661358,1714150267468,-1783.51,0.00012809,2]
[323661359,1714150267484,-500.0,0.00012809,2]
[323661360,1714150267495,-500.0,0.00012809,2]
[323661361,1714150267508,-500.0,0.00012809,2]
[323661362,1714150267519,-500.0,0.00012809,2]
[323661363,1714150267530,-1161.04,0.00012809,2]
[323661364,1714150267540,-2951.91,0.00012809,2]
[323661365,1714150267551,-4407.57,0.00012809,2]
[323661366,1714150267561,-649.6,0.00012809,2]
[323661367,1714150267572,-500.0,0.00012809,2]
[323661368,1714150267582,-9684.29,0.00012809,2]
[323661369,1714150267592,-553.87,0.00012809,2]
[323661370,1714150267603,-500.0,0.00012809,2]
[323661371,1714150267613,-3366.4,0.00012809,2]
[323661372,1714150267624,-600.0,0.000129,4]
[323661373,1714150267635,-168.53497697,0.000129,2]
[323661374,1714150267646,-158.43571472,0.000129,2]
[323661375,1714150267656,-500.0,0.00012905,2]
[323661376,1714150267669,-500.0,0.00012905,2]
[323661377,1714150267679,-646.8,0.00012905,2]
[323661378,1714150267690,-670.9,0.00012905,2]
[323661379,1714150267701,-523.63,0.00012905,2]
[323661380,1714150267711,-1307.2,0.00012905,2]
[323661381,1714150267722,-557.81,0.00012905,2]
[323661382,1714150267732,-500.0,0.00012905,2]
[323661383,1714150267742,-1518.96,0.00012905,2]
[323661384,1714150267754,-633.6,0.00012905,2]
[323661385,1714150267767,-511.52,0.00012905,2]
[323661386,1714150267777,-500.0,0.00012905,2]
[323661387,1714150267788,-500.0,0.00012905,2]
[323661388,1714150267798,-500.0,0.00012905,2]
[323661389,1714150267808,-1031.89,0.00012905,2]
[323661390,1714150267819,-500.0,0.00012905,2]
[323661391,1714150267829,-1662.77,0.00012905,2]
[323661392,1714150267839,-1749.48,0.00012905,2]
[323661393,1714150267851,-500.0,0.00012905,2]
[323661394,1714150267861,-551.1,0.00012905,2]
[323661395,1714150267872,-1915.18,0.00012905,2]
[323661396,1714150267882,-500.0,0.00012905,2]
[323661397,1714150267892,-500.0,0.00012905,2]
[323661398,1714150267903,-641.59,0.00012905,2]
[323661399,1714150267912,-401.16,0.00012905,2]
[323661400,1714150267922,-500.0,0.00012905,2]
[323661401,1714150267931,-296.05742531,0.00012905,2]
[323661402,1714150267941,-602.13,0.00012905,2]
[323661403,1714150267951,-694.72,0.00012905,2]
[323661404,1714150267960,-500.0,0.00012905,2]
[323661405,1714150267971,-640.57,0.00012905,2]
[323661406,1714150267981,-530.71,0.00012905,2]
[323661407,1714150267991,-500.0,0.00012905,2]
[323661408,1714150268001,-566.11,0.00012905,2]
[323661409,1714150268012,-2130.96,0.00012905,2]
[323661410,1714150268021,-500.0,0.00012905,2]
[323661411,1714150268035,-500.0,0.00012905,2]
[323661412,1714150268049,-1213.81,0.00012905,2]
[323661413,1714150268058,-500.0,0.00012905,2]
[323661414,1714150268067,-3755.85,0.00012905,2]
[323661415,1714150268076,-645.35,0.00012905,2]
[323661416,1714150268086,-1153.84,0.00012905,2]
[323661417,1714150268096,-2861.94,0.00012905,2]
[323661418,1714150268106,-647.66,0.00012905,2]
[323661419,1714150268115,-1584.36,0.00012905,2]
[323661420,1714150268124,-500.0,0.00012905,2]
[323661421,1714150268134,-500.0,0.00012905,2]
[323661422,1714150268143,-6488.73,0.00012905,2]
[323661423,1714150268153,-3962.14,0.00012905,2]
[323661424,1714150268164,-4295.61,0.00012905,2]
[323661425,1714150268173,-500.0,0.00012905,2]
[323661426,1714150268182,-7467.01,0.00012905,2]
[323661427,1714150268190,-815.53,0.00012905,2]
[323661428,1714150268317,-3466.33,0.00012905,2]
[323661429,1714150268328,-500.0,0.00012905,2]
[323661430,1714150268338,-500.0,0.00012905,2]
[323661431,1714150268348,-1589.56,0.00012905,2]
[323661432,1714150268358,-500.0,0.00012905,2]
[323661433,1714150268367,-9375.88,0.00012905,2]
[323661434,1714150268376,-1164.77,0.00012905,2]
[323661435,1714150268386,-500.0,0.00012905,2]
[323661436,1714150268396,-567.11197657,0.00012905,2]
[323661437,1714150268411,-15153.16802343,0.00012905,2]
[323661438,1714150268421,-500.0,0.00012905,2]
[323661439,1714150268430,-1145.55,0.00012905,2]
[323661440,1714150268440,-500.0,0.00012905,2]
[323661441,1714150268449,-2478.29,0.00012905,2]
[323661442,1714150268459,-1743.27,0.00012905,2]
[323661443,1714150268468,-500.0,0.00012905,2]
[323661444,1714150268477,-1579.07,0.00012905,2]
[323661445,1714150268488,-500.0,0.00012905,2]
[323661446,1714150268498,-603.57991909,0.00012905,2]
[323661447,1714150268508,-2074.53,0.00012905,2]
[323661448,1714150268518,-1928.06,0.00012905,2]
[323661449,1714150268527,-654.98,0.00012905,2]
[323661450,1714150268537,-2788.94,0.00012905,2]
[323661451,1714150268546,-303.15724292,0.00012905,2]
[323661452,1714150268556,-500.0,0.00012905,2]
[323661453,1714150268566,-666.3,0.00012905,2]
[323661454,1714150268577,-2096.48,0.00012905,2]
[323661455,1714150268586,-1524.55,0.00012905,2]
[323661456,1714150268596,-500.0,0.00012905,2]
[323661457,1714150268607,-1658.01,0.00012905,2]
[323661458,1714150268617,-500.0,0.00012905,2]
[323661459,1714150268627,-2234.9,0.00012905,2]
[323661460,1714150268637,-2285.0,0.00012905,2]
[323661461,1714150268647,-388.173,0.00012905,2]
[323661462,1714150268659,-1858.0,0.00012905,2]
[323661463,1714150268668,-512.398,0.00012905,2]
[323661464,1714150268679,-609.0,0.00012905,2]
[323661465,1714150268690,-807.0,0.00012905,2]
[323661466,1714150268700,-2445.0,0.00012905,2]
[323661467,1714150268709,-1478.334,0.00012905,2]
[323661468,1714150268717,-3120.0,0.00012905,2]
[323661469,1714150268726,-151.071,0.00012905,2]
[323661470,1714150268735,-402.0,0.00012905,2]
[323661471,1714150268743,-214.0,0.00012905,2]
[323661472,1714150268752,-1640.0,0.00012905,2]
[323661473,1714150268764,-444.492,0.00012905,2]
[323661474,1714150268773,-150.855,0.00012905,2]
[323661475,1714150268782,-1142.0,0.00012905,2]
[323661476,1714150268791,-5179.52,0.00012905,2]
[323661477,1714150268800,-5896.0,0.00012905,2]
[323661478,1714150268809,-432.51,0.00012905,2]
[323661479,1714150268818,-2290.0,0.00012905,2]
[323661480,1714150268828,-234.342,0.00012905,2]
[323661481,1714150268838,-150.485,0.00012905,2]
[323661482,1714150268847,-211.83,0.00012905,2]
[323661483,1714150268857,-1336.32,0.00012906,2]
[323661484,1714150268867,-5714.02,0.00012906,2]
[323661485,1714150268877,-500.0,0.00012906,2]
[323661486,1714150268886,-2299.34,0.00012906,2]
[323661487,1714150268896,-2114.98,0.00012906,2]
[323661488,1714150268905,-3485.89,0.00012906,2]
[323661489,1714150268915,-500.0,0.00012906,2]
[323661490,1714150268927,-500.0,0.00012906,2]
[323661491,1714150268937,-1508.71,0.00012906,2]
[323661492,1714150268947,-500.0,0.00012906,2]
[323661493,1714150268957,-1925.72,0.00012906,2]
[323661494,1714150268967,-3388.2,0.00012906,2]
[323661495,1714150268976,-3350.21,0.00012906,2]
[323661496,1714150268986,-1441.28,0.00012906,2]
[323661497,1714150268995,-1505.62,0.00012906,2]
[323661498,1714150269005,-2138.81,0.00012906,2]
[323661499,1714150269015,-2376.06,0.00012906,2]
[323661500,1714150269025,-880.26,0.00012906,2]
[323661501,1714150269035,-9987.47,0.00012906,2]
[323661502,1714150269045,-1226.48,0.00012906,2]
[323661503,1714150269055,-9127.31,0.00012906,2]
[323661504,1714150269064,-2448.36,0.00012906,2]
[323661505,1714150269075,-4697.4,0.00012906,2]
[323661506,1714150269090,-5658.6,0.00012906,2]
[323661507,1714150269100,-1472.23,0.00012906,2]
[323661508,1714150269110,-2498.69,0.00012906,2]
[323661509,1714150269122,-825.48,0.00012906,2]
[323661510,1714150269132,-2149.5,0.00012906,2]
[323661511,1714150269142,-2300.13,0.00012906,2]
[323661512,1714150269151,-5436.55,0.00012906,2]
[323661513,1714150269161,-7224.11,0.00012906,2]
[323661514,1714150269171,-7037.92,0.00012906,2]
[323661515,1714150269181,-1504.34,0.00012906,2]
[323661516,1714150269191,-1994.61,0.00012906,2]
[323661517,1714150269201,-497.82,0.00012907,2]
[323661518,1714150269210,-500.0,0.00012907,2]
[323661519,1714150269220,-500.0,0.00012907,2]
[323661520,1714150269229,-500.0,0.00012907,2]
[323661521,1714150269239,-584.44,0.00012907,2]
[323661522,1714150269249,-500.0,0.00012907,2]
[323661523,1714150269259,-500.0,0.00012907,2]
[323661524,1714150269269,-629.59203605,0.00012907,2]
[323661525,1714150269279,-611.67038316,0.00012907,2]
[323661526,1714150269289,-500.0,0.00012907,2]
[323661527,1714150269299,-500.0,0.00012907,2]
[323661528,1714150269309,-500.0,0.00012907,2]
[323661529,1714150269318,-500.0,0.00012907,2]
[323661530,1714150269328,-585.19,0.00012907,2]
[323661531,1714150269338,-960.19,0.00012907,2]
[323661532,1714150269348,-500.0,0.00012907,2]
[323661533,1714150269358,-500.0,0.00012907,2]
[323661534,1714150269368,-500.0,0.00012907,2]
[323661535,1714150269378,-549.0,0.00012907,2]
[323661536,1714150269387,-500.0,0.00012907,2]
[323661537,1714150269397,-500.0,0.00012907,2]
[323661538,1714150269407,-291.86225806,0.00012907,2]
[323661539,1714150269421,-208.13774194,0.00012907,2]
[323661540,1714150269431,-500.0,0.00012907,2]
[323661541,1714150269441,-500.0,0.00012907,2]
[323661542,1714150269451,-500.0,0.00012907,2]
[323661543,1714150269461,-500.0,0.00012907,2]
[323661544,1714150269472,-500.0,0.00012907,2]
[323661545,1714150269482,-700.04,0.00012907,2]
[323661546,1714150269492,-500.0,0.00012907,2]
[323661547,1714150269501,-661.36,0.00012907,2]
[323661548,1714150269514,-871.16,0.00012907,2]
[323661549,1714150269524,-500.0,0.00012907,2]
[323661550,1714150269533,-500.0,0.00012907,2]
[323661551,1714150269543,-500.0,0.00012907,2]
[323661552,1714150269552,-701.03517163,0.00012907,2]
[323661553,1714150269567,-123.52482837,0.00012907,2]
[323661554,1714150269578,-171.90717706,0.00012907,2]
[323661555,1714150269609,-263.61730743,0.00012907,2]
[323661556,1714150269619,-290.52522501,0.00012907,2]
[323661557,1714150269631,-194.29710188,0.00012907,2]
[323661558,1714150269642,-879.96,0.00012907,2]
[323661559,1714150269652,-500.0,0.00012907,2]
[323661560,1714150269662,-488.22331843,0.00012907,2]
[323661561,1714150269678,-11.77668157,0.00012907,2]
[323661562,1714150269688,-752.19,0.00012907,2]
[323661563,1714150269698,-500.0,0.00012907,2]
[323661564,1714150269707,-500.0,0.00012907,2]
[323661565,1714150269717,-568.62,0.00012907,2]
[323661566,1714150269727,-500.0,0.00012907,2]
[323661567,1714150269737,-261.16274829,0.00012907,2]
[323661568,1714150269747,-1628.68,0.00012907,2]
[323661569,1714150269762,-500.0,0.00012907,2]
[323661570,1714150269773,-500.0,0.00012907,2]
[323661571,1714150269783,-500.0,0.00012907,2]
[323661572,1714150269793,-781.56,0.00012907,2]
[323661573,1714150269804,-500.0,0.00012907,2]
[323661574,1714150269815,-500.0,0.00012907,2]
[323661575,1714150269825,-980.23,0.00012907,2]
[323661576,1714150269835,-500.0,0.00012907,2]
[323661577,1714150269844,-500.0,0.00012907,2]
[323661578,1714150269854,-824.0,0.00012907,2]
[323661579,1714150269864,-500.0,0.00012907,2]
[323661580,1714150269874,-500.0,0.00012907,2]
[323661581,1714150269884,-749.92,0.00012907,2]
[323661582,1714150269893,-500.0,0.00012907,2]
[323661583,1714150269903,-1823.62,0.00012907,2]
[323661584,1714150269913,-702.36,0.00012907,2]
[323661585,1714150269922,-500.0,0.00012907,2]
[323661586,1714150269932,-1071.92,0.00012907,2]
[323661587,1714150269940,-1226.02,0.00012907,2]
[323661588,1714150269950,-500.0,0.00012907,2]
[323661589,1714150269960,-1040.56,0.00012907,2]
[323661590,1714150269970,-500.0,0.00012907,2]
[323661591,1714150269979,-631.41498561,0.00012907,2]
[323661592,1714150269988,-500.0,0.00012907,2]
[323661593,1714150269998,-500.0,0.00012907,2]
[323661594,1714150270009,-891.4,0.00012907,2]
[323661595,1714150270019,-500.0,0.00012907,2]
[323661596,1714150270029,-500.0,0.00012907,2]
[323661597,1714150270038,-500.0,0.00012907,2]
[323661598,1714150270048,-500.0,0.00012907,2]
[323661599,1714150270058,-500.0,0.00012907,2]
[323661600,1714150270068,-1439.39,0.00012907,2]
[323661601,1714150270077,-500.0,0.00012907,2]
[323661602,1714150270087,-1078.99,0.00012907,2]
[323661603,1714150270096,-1131.71,0.00012907,2]
[323661604,1714150270106,-500.0,0.00012907,2]
[323661605,1714150270116,-500.0,0.00012907,2]
[323661606,1714150270126,-500.0,0.00012907,2]
[323661607,1714150270136,-500.0,0.00012907,2]
[323661608,1714150270145,-500.0,0.00012907,2]
[323661609,1714150270155,-505.28,0.00012907,2]
[323661610,1714150270165,-500.0,0.00012907,2]
[323661611,1714150270174,-500.0,0.00012907,2]
[323661612,1714150270184,-500.0,0.00012907,2]
[323661613,1714150270194,-949.89,0.00012907,2]
[323661614,1714150270203,-500.0,0.00012907,2]
[323661615,1714150270213,-500.0,0.00012907,2]
[323661616,1714150270223,-500.0,0.00012907,2]
[323661617,1714150270232,-438.93689203,0.00012907,2]
[323661618,1714150270242,-500.0,0.00012907,2]
[323661619,1714150270252,-500.0,0.00012907,2]
[323661620,1714150270263,-502.12,0.00012907,2]
[323661621,1714150270274,-450.17514251,0.00012907,2]
[323661622,1714150270284,-500.0,0.00012907,2]
[323661623,1714150270294,-500.0,0.00012907,2]
[323661624,1714150270304,-500.0,0.00012907,2]
[323661625,1714150270313,-589.0,0.00012907,2]
[323661626,1714150270323,-500.0,0.00012907,2]
[323661627,1714150270333,-1008.27,0.00012907,2]
[323661628,1714150270342,-500.0,0.00012907,2]
[323661629,1714150270352,-500.0,0.00012908,2]
[323661630,1714150270361,-512.41,0.00012908,2]
[323661631,1714150270371,-500.0,0.00012908,2]
[323661632,1714150270380,-804.39,0.00012908,2]
[323661633,1714150270390,-500.0,0.00012908,2]
[323661634,1714150270400,-500.0,0.00012908,2]
[323661635,1714150270410,-1395.44,0.00012908,2]
[323661636,1714150270419,-500.0,0.00012908,2]
[323661637,1714150270429,-660.74,0.00012908,2]
[323661638,1714150270439,-500.0,0.00012908,2]
[323661639,1714150270449,-500.0,0.00012908,2]
[323661640,1714150270464,-680.16,0.00012908,2]
[323661641,1714150270473,-500.0,0.00012908,2]
[323661642,1714150270486,-1015.12,0.00012908,2]
[323661643,1714150270497,-1599.73,0.00012908,2]
[323661644,1714150270510,-1437.77,0.00012908,2]
[323661645,1714150270521,-500.0,0.00012908,2]
[323661646,1714150270530,-623.29,0.00012908,2]
[323661647,1714150270540,-500.0,0.00012908,2]
[323661648,1714150270550,-500.0,0.00012908,2]
[323661649,1714150270559,-649.47361722,0.00012908,2]
[323661650,1714150270573,-307.85638278,0.00012908,2]
[323661651,1714150270585,-579.4,0.00012908,2]
[323661652,1714150270596,-288.00425722,0.0001291,2]
[323661653,1714150270610,-211.99574278,0.0001291,2]
[323661654,1714150270621,-379.46697505,0.0001291,2]
[323661655,1714150270633,-120.53302495,0.0001291,2]
[323661656,1714150270643,-569.5,0.0001291,2]
[323661657,1714150270657,-500.0,0.0001291,2]
[323661658,1714150270666,-500.0,0.0001291,2]
[323661659,1714150270676,-45.51023628,0.0001291,2]
[323661660,1714150270688,-454.48976372,0.0001291,2]
[323661661,1714150270698,-788.98,0.00012948,2]
[323661662,1714150270706,-1394.19,0.00012948,2]
[323661663,1714150270716,-172.09991627,0.00012948,2]
[323661664,1714150270796,-855.62630079,0.00012948,2]
[323661665,1714150270815,-352.72799642,0.00012948,2]
[323661666,1714150270828,-816.14578652,0.00012948,2]
[323661667,1714150271130,-1678.12,0.00012948,2]
[323661668,1714150271140,-1854.87,0.00012948,2]
[323661669,1714150271150,-2400.68,0.00012948,2]
[323661670,1714150271162,-2239.95,0.00012948,2]
[323661671,1714150271172,-2716.34,0.00012948,2]
[323661672,1714150271193,-1086.37,0.00012948,2]
[323661673,1714150271204,-1182.47,0.00012948,2]
[323661674,1714150271214,-2675.40091348,0.00012948,2]
[323661675,1714150271632,-500.0,0.00011439,2]
[323661676,1714150271642,-500.0,0.00011537,2]
[323661677,1714150271652,-2783.47908652,0.00012948,2]
[323661678,1714150271662,-500.0,0.00012948,2]
[323661679,1714150271672,-500.0,0.00012948,2]
[323661680,1714150271684,-500.0,0.00012948,2]
[323661681,1714150271694,-500.0,0.00012948,2]
[323661682,1714150271704,-500.0,0.00012948,2]
[323661683,1714150271714,-500.0,0.00012948,2]
[323661684,1714150271723,-2824.31,0.00012948,2]
[323661685,1714150271733,-1628.58908832,0.00012948,2]
[323661686,1714150271742,-49857.88717519,0.00013,2]
[323661687,1714150271755,-14582.43468,0.00013,2]
[323661688,1714150271768,-35885.226265,0.00013,2]
[323661689,1714150271780,-1018.3,0.00013,2]
[323661690,1714150271798,-7496.55257059,0.00013,2]
[323661691,1714150271809,-16869.73934652,0.00013,2]
[323661692,1714150271831,-11372.55479638,0.00013,2]
[323661693,1714150271845,-7354.2198864,0.00013,2]
[323661694,1714150271861,-20124.0674752,0.00013,2]
[323661695,1714150271874,-736.29100001,0.00013,2]
[323661696,1714150271886,-571.81271139,0.00013,2]
[323661697,1714150271900,-6393.8622,0.00013,2]
[323661698,1714150271913,-1227.69,0.00013,2]
[323661699,1714150271925,-50321.76674126,0.00013,2]
[323661700,1714150271937,-3229.94967179,0.00013,2]
[323661701,1714150271950,-387.53754655,0.00013,2]
[323661702,1714150271962,-794.89183922,0.00013,2]
[323661703,1714150271974,-617.96318409,0.00013,2]
[323661704,1714150271987,-677.99999947,0.00013,2]
[323661705,1714150271999,-945.51932382,0.00013,2]
[323661706,1714150272012,-2479.43855427,0.00013,2]
[323661707,1714150272025,-265.15710906,0.00013,2]
[323661708,1714150272037,-669.896727,0.00013,2]
[323661709,1714150272050,-562.7045,0.00013,2]
[323661710,1714150272062,-465.45006,0.00013,2]
[323661711,1714150272075,-495.411,0.00013,2]
[323661712,1714150272088,-1494.43474316,0.00013,2]
[323661713,1714150272101,-3552.87052322,0.00013,2]
[323661714,1714150272114,-515.48661682,0.00013,2]
[323661715,1714150272126,-49730.8,0.00013,2]
[323661716,1714150272139,-300.0,0.00013,2]
[323661717,1714150272152,-638.0945318,0.00013,2]
[323661718,1714150272166,-33290.28698545,0.00013,2]
[323661726,1714150943505,401.67,8.219e-05,2]
[323661727,1714151017783,46463.91698132,8.219e-05,2]
[323661737,1714151371332,-1036.9458186,8.812e-05,2]
[323661738,1714151371355,-155.0,8.812e-05,2]
[323661739,1714151371378,-1511.4748814,8.813e-05,2]
[323661752,1714151432581,-414.45482597,8.81e-05,2]
[323661753,1714151432591,-508.97377429,8.811e-05,2]
[323661754,1714151432616,-15.17858191,8.811e-05,2]
[323661755,1714151432625,-1242.41167652,8.811e-05,2]
[323661756,1714151432635,-155.0,8.811e-05,2]
[323661758,1714151432644,-1608.97922625,8.812e-05,2]
[323661760,1714151432654,-198.43051532,8.813e-05,2]
[323661762,1714151432665,-404.73476613,8.813e-05,2]
[323661767,1714151432695,-3064.60664569,8.813e-05,2]
[323661769,1714151432710,-4461.255148,8.813e-05,2]
[323661772,1714151432728,-9806.16216527,8.813e-05,2]
[323661774,1714151432737,-5137.03651152,8.825e-05,2]
[323661776,1714151432746,-150.0,9.309e-05,2]
[323661777,1714151432756,-150.0,9.309e-05,2]
[323661778,1714151432765,-4728.32,9.31e-05,2]
[323661779,1714151432775,-500.0,9.322e-05,2]
[323661780,1714151432784,-4042.68,9.353e-05,2]
[323661781,1714151432793,-250.0,9.375e-05,2]
[323661782,1714151432803,-13494.74064821,9.376e-05,2]
[323661783,1714151432814,-386.17710783,9.376e-05,2]
[323661784,1714151432835,-391.75573742,9.376e-05,2]
[323661785,1714151432846,-6018.32790803,9.376e-05,2]
[323661786,1714151432857,-3608.99859851,9.376e-05,2]
[323661787,1714151432867,-504.0,9.497e-05,2]
[323661788,1714151432876,-156.85,9.52e-05,2]
[323661789,1714151432885,-4475.62,9.569e-05,2]
[323661790,1714151432895,-160.0,9.58e-05,2]
[323661791,1714151432905,-156.85,9.602e-05,2]
[323661792,1714151432915,-150.99,9.67e-05,2]
[323661793,1714151432925,-156.85,9.685e-05,2]
[323661794,1714151432936,-156.85,9.768e-05,2]
[323661795,1714151432946,-156.85,9.85e-05,2]
[323661796,1714151432956,-156.85,9.933e-05,2]
[323661797,1714151432967,-156.85,0.00010016,2]
[323661798,1714151432977,-184.34,0.0001007,2]
[323661799,1714151432986,-184.34,0.00010072,2]
[323661800,1714151432995,-184.34,0.00010075,2]
[323661801,1714151433006,-184.34,0.00010078,2]
[323661802,1714151433016,-184.34,0.0001008,2]
[323661803,1714151433025,-184.34,0.00010083,2]
[323661804,1714151433035,-184.34,0.00010086,2]
[323661805,1714151433045,-184.34,0.00010088,2]
[323661806,1714151433055,-184.34,0.00010091,2]
[323661807,1714151433064,-184.34,0.00010094,2]
[323661808,1714151433073,-184.34,0.00010096,2]
[323661809,1714151433083,-184.34,0.00010099,2]
[323661810,1714151433092,-184.34,0.00010102,2]
[323661811,1714151433102,-184.34,0.00010104,2]